Workbook

Sheet Sheet2
A1: Flt C | B1: Name | C1: Age | D1: Div | E1: BWt (Lb) | F1: WtCls (Lb) | G1: Best Squat | H1: Best Bench | I1: Best Deadlift | J1: PL Total | K1: Coeff Score | L1: Age & Coeff | M1: Pl code | N1: Pl-Div-WtCl | O1: Tm Pts | P1: Total | Q1: Glossbrenner | R1: Equipment | S1: Tested | T1: Age Coeff | U1: Coef | V1: TotalCoef
A2: C | B2: Rita Carlsson | C2: 66 | D2: F-M6 | E2: 130.6 | F2: 59.3 | G2: 190 | H2: 55 | I2: 167.5 | J2: 0 | K2: 0 | L2: 0 | M2: 3 | N2: 0 | O2: 0 | P2: =(G2+H2+I2) -> 412.5 | Q2: 0.99835 | R2: 0.8 | S2: 1 | T2: 1.511 | U2: =(P2*R2*S2*T2) -> 498.63 | V2: =(U2*Q2) -> 497.8072605 | W2: F1
A3: C | B3: Dawn Hickman | C3: 50 | D3: F-M3 | E3: 104.2 | F3: 47.3 | G3: 180 | H3: 102.5 | I3: 160 | J3: 0 | K3: 0 | L3: 0 | M3: 3 | N3: 0 | O3: 0 | P3: =(G3+H3+I3) -> 442.5 | Q3: 1.1922 | R3: 0.8 | S3: 1 | T3: 1.13 | U3: =(P3*R3*S3*T3) -> 400.02 | V3: =(U3*Q3) -> 476.903844 | W3: F2
A4: B | B4: James Vang | C4: 26 | D4: M-O | E4: 153 | F4: 69.5 | G4: 245 | H4: 137.5 | I4: 265 | J4: 0 | K4: 0 | L4: 0 | M4: 3 | N4: 0 | O4: 0 | P4: =(G4+H4+I4) -> 647.5 | Q4: 0.73135 | R4: 1 | S4: 1 | T4: 1 | U4: =(P4*R4*S4*T4) -> 647.5 | V4: =(U4*Q4) -> 473.549125 | W4: M1
A5: C | B5: Chad Schroeder | C5: 34 | D5: M-O | E5: 226.8 | F5: 102.9 | G5: 295 | H5: 197.5 | I5: 327.5 | J5: 0 | K5: 0 | L5: 0 | M5: 3 | N5: 0 | O5: 0 | P5: =(G5+H5+I5) -> 820 | Q5: 0.5758 | R5: 1 | S5: 1 | T5: 1 | U5: =(P5*R5*S5*T5) -> 820 | V5: =(U5*Q5) -> 472.156 | W5: M2
A6: C | B6: Nate McLaughlin | C6: 26 | D6: M-O | E6: 291.6 | F6: 132.3 | G6: 337.5 | H6: 205 | I6: 290 | J6: 0 | K6: 0 | L6: 0 | M6: 3 | N6: 0 | O6: 0 | P6: =(G6+H6+I6) -> 832.5 | Q6: 0.53805 | R6: 1 | S6: 1 | T6: 1 | U6: =(P6*R6*S6*T6) -> 832.5 | V6: =(U6*Q6) -> 447.926625 | W6: M3
A7: C | B7: Tom Fahy | C7: 53 | D7: M-M3 | E7: 248.6 | F7: 112.8 | G7: 322.5 | H7: 262.5 | I7: 292.5 | J7: 0 | K7: 0 | L7: 0 | M7: 3 | N7: 0 | O7: 0 | P7: =(G7+H7+I7) -> 877.5 | Q7: 0.55875 | R7: 0.8 | S7: 0.92 | T7: 1.184 | U7: =(P7*R7*S7*T7) -> 764.67456 | V7: =(U7*Q7) -> 427.2619104
A8: C | B8: Casey Saunders | C8: 25 | D8: M-O | E8: 271.6 | F8: 123.2 | G8: 317.5 | H8: 197.5 | I8: 330 | J8: 0 | K8: 0 | L8: 0 | M8: 3 | N8: 0 | O8: 0 | P8: =(G8+H8+I8) -> 845 | Q8: 0.54755 | R8: 1 | S8: 0.92 | T8: 1 | U8: =(P8*R8*S8*T8) -> 777.4 | V8: =(U8*Q8) -> 425.66537
A9: B | B9: James Balmes | C9: 29 | D9: M-O | E9: 196 | F9: 88.9 | G9: 237.5 | H9: 185 | I9: 280 | J9: 0 | K9: 0 | L9: 0 | M9: 3 | N9: 0 | O9: 0 | P9: =(G9+H9+I9) -> 702.5 | Q9: 0.61815 | R9: 1 | S9: 0.92 | T9: 1 | U9: =(P9*R9*S9*T9) -> 646.3 | V9: =(U9*Q9) -> 399.510345
A10: C | B10: Kevin Frey | C10: 40 | D10: M-O | E10: 302 | F10: 137 | G10: 410 | H10: 295 | I10: 295 | J10: 0 | K10: 0 | L10: 0 | M10: 3 | N10: 0 | O10: 0 | P10: =(G10+H10+I10) -> 1000 | Q10: 0.5337 | R10: 0.8 | S10: 0.92 | T10: 1 | U10: =(P10*R10*S10*T10) -> 736 | V10: =(U10*Q10) -> 392.8032
A11: A | B11: Sheri Stiles | C11: 30 | D11: F-O | E11: 154.6 | F11: 70.1 | G11: 182.5 | H11: 80 | I11: 177.5 | J11: 0 | K11: 0 | L11: 0 | M11: 3 | N11: 0 | O11: 0 | P11: =(G11+H11+I11) -> 440 | Q11: 0.8756 | R11: 1 | S11: 1 | T11: 1 | U11: =(P11*R11*S11*T11) -> 440 | V11: =(U11*Q11) -> 385.264 | W11: F3
A12: C | B12: Jason Ehlert | C12: 41 | D12: M-O | E12: 270.2 | F12: 120.6 | G12: 500 | H12: 62.5 | I12: 365 | J12: 0 | K12: 0 | L12: 0 | M12: 3 | N12: 0 | O12: 0 | P12: =(G12+H12+I12) -> 927.5 | Q12: 0.5482 | R12: 0.8 | S12: 0.92 | T12: 1.01 | U12: =(P12*R12*S12*T12) -> 689.4664 | V12: =(U12*Q12) -> 377.9654805
A13: C | B13: Belinda Clary | C13: 43 | D13: F-M1 | E13: 146.6 | F13: 66.5 | G13: 235 | H13: 127.5 | I13: 182.5 | J13: 0 | K13: 0 | L13: 0 | M13: 3 | N13: 0 | O13: 0 | P13: =(G13+H13+I13) -> 545 | Q13: 0.9102 | R13: 0.8 | S13: 0.92 | T13: 1.031 | U13: =(P13*R13*S13*T13) -> 413.55472 | V13: =(U13*Q13) -> 376.4175061
A14: B | B14: Greg Smith | C14: 41 | D14: M-M1 | E14: 160.8 | F14: 73 | G14: 195 | H14: 100 | I14: 230 | J14: 0 | K14: 0 | L14: 0 | M14: 3 | N14: 0 | O14: 0 | P14: =(G14+H14+I14) -> 525 | Q14: 0.70725 | R14: 1 | S14: 1 | T14: 1.01 | U14: =(P14*R14*S14*T14) -> 530.25 | V14: =(U14*Q14) -> 375.0193125
A15: A | B15: Kalya Forcier | C15: 24 | D15: F-O | E15: 113.4 | F15: 51.4 | G15: 130 | H15: 70 | I15: 135 | J15: 0 | K15: 0 | L15: 0 | M15: 3 | N15: 0 | O15: 0 | P15: =(G15+H15+I15) -> 335 | Q15: 1.1178 | R15: 1 | S15: 1 | T15: 1 | U15: =(P15*R15*S15*T15) -> 335 | V15: =(U15*Q15) -> 374.463 | X15: TESTED
A16: C | B16: Alyssa Klein | C16: 45 | D16: F-M2 | E16: 162.2 | F16: 73.6 | G16: 192.5 | H16: 125 | I16: 192.5 | J16: 0 | K16: 0 | L16: 0 | M16: 3 | N16: 0 | O16: 0 | P16: =(G16+H16+I16) -> 510 | Q16: 0.8468 | R16: 0.8 | S16: 1 | T16: 1.055 | U16: =(P16*R16*S16*T16) -> 430.44 | V16: =(U16*Q16) -> 364.496592
A17: B | B17: Josiah Jones | C17: 20 | D17: M-JR | E17: 163.6 | F17: 74.2 | G17: 175 | H17: 120 | I17: 207.5 | J17: 0 | K17: 0 | L17: 0 | M17: 3 | N17: 0 | O17: 0 | P17: =(G17+H17+I17) -> 502.5 | Q17: 0.694 | R17: 1.025 | S17: 1 | T17: 1 | U17: =(P17*R17*S17*T17) -> 515.0625 | V17: =(U17*Q17) -> 357.453375
A18: C | B18: Cody Campbell | C18: 35 | D18: M-O | E18: 217 | F18: 98.4 | G18: 322.5 | H18: 172.5 | I18: 287.5 | J18: 0 | K18: 0 | L18: 0 | M18: 3 | N18: 0 | O18: 0 | P18: =(G18+H18+I18) -> 782.5 | Q18: 0.58535 | R18: 0.8 | S18: 0.92 | T18: 1 | U18: =(P18*R18*S18*T18) -> 575.92 | V18: =(U18*Q18) -> 337.114772
A19: A | B19: Mikaela Raddatz | C19: 33 | D19: F-O | E19: 125.8 | F19: 57 | G19: 120 | H19: 57.5 | I19: 150 | J19: 0 | K19: 0 | L19: 0 | M19: 3 | N19: 0 | O19: 0 | P19: =(G19+H19+I19) -> 327.5 | Q19: 1.0277 | R19: 1 | S19: 1 | T19: 1 | U19: =(P19*R19*S19*T19) -> 327.5 | V19: =(U19*Q19) -> 336.57175
A20: B | B20: Denzel LaBlanc | C20: 24 | D20: M-O | E20: 204.2 | F20: 93.6 | G20: 207.5 | H20: 155 | I20: 237.5 | J20: 0 | K20: 0 | L20: 0 | M20: 3 | N20: 0 | O20: 0 | P20: =(G20+H20+I20) -> 600 | Q20: 0.60265 | R20: 1 | S20: 0.92 | T20: 1 | U20: =(P20*R20*S20*T20) -> 552 | V20: =(U20*Q20) -> 332.6628
A21: B | B21: Brandon Thiel | C21: 20 | D21: M-JR | E21: 213.6 | F21: 96.9 | G21: 215 | H21: 115 | I21: 272.5 | J21: 0 | K21: 0 | L21: 0 | M21: 3 | N21: 0 | O21: 0 | P21: =(G21+H21+I21) -> 602.5 | Q21: 0.59085 | R21: 1 | S21: 0.92 | T21: 1 | U21: =(P21*R21*S21*T21) -> 554.3 | V21: =(U21*Q21) -> 327.508155
A22: B | B22: Joseph Lovely | C22: 49 | D22: M-M2 | E22: 210 | F22: 95.3 | G22: 175 | H22: 92.5 | I22: 227.5 | J22: 0 | K22: 0 | L22: 0 | M22: 3 | N22: 0 | O22: 0 | P22: =(G22+H22+I22) -> 495 | Q22: 0.594 | R22: 1 | S22: 1 | T22: 1.113 | U22: =(P22*R22*S22*T22) -> 550.935 | V22: =(U22*Q22) -> 327.25539
A23: A | B23: Ann Lenz | C23: 40 | D23: F-O | E23: 177.6 | F23: 80.6 | G23: 210 | H23: 130 | I23: 165 | J23: 0 | K23: 0 | L23: 0 | M23: 3 | N23: 0 | O23: 0 | P23: =(G23+H23+I23) -> 505 | Q23: 0.798 | R23: 0.8 | S23: 1 | T23: 1.01 | U23: =(P23*R23*S23*T23) -> 408.04 | V23: =(U23*Q23) -> 325.61592
A24: B | B24: Pat Elkin | C24: 33 | D24: M-O | E24: 236.6 | F24: 107.8 | G24: 217.5 | H24: 152.5 | I24: 245 | J24: 0 | K24: 0 | L24: 0 | M24: 3 | N24: 0 | O24: 0 | P24: =(G24+H24+I24) -> 615 | Q24: 0.56665 | R24: 1 | S24: 0.92 | T24: 1 | U24: =(P24*R24*S24*T24) -> 565.8 | V24: =(U24*Q24) -> 320.61057
A25: B | B25: Garrett Query | C25: 28 | D25: M-O | E25: 219.4 | F25: 99.5 | G25: 200 | H25: 125 | I25: 222.5 | J25: 0 | K25: 0 | L25: 0 | M25: 3 | N25: 0 | O25: 0 | P25: =(G25+H25+I25) -> 547.5 | Q25: 0.58255 | R25: 1 | S25: 1 | T25: 1 | U25: =(P25*R25*S25*T25) -> 547.5 | V25: =(U25*Q25) -> 318.946125 | X25: TESTED
A26: B | B26: Gagandeep Jandu | C26: 24 | D26: M-O | E26: 256.8 | F26: 116.5 | G26: 217.5 | H26: 120 | I26: 260 | J26: 0 | K26: 0 | L26: 0 | M26: 3 | N26: 0 | O26: 0 | P26: =(G26+H26+I26) -> 597.5 | Q26: 0.5546 | R26: 1.025 | S26: 0.92 | T26: 1 | U26: =(P26*R26*S26*T26) -> 563.4425 | V26: =(U26*Q26) -> 312.4852105
A27: A | B27: Lindzey Groth | C27: 24 | D27: F-O | E27: 138.4 | F27: 62.8 | G27: 100 | H27: 67.5 | I27: 152.5 | J27: 0 | K27: 0 | L27: 0 | M27: 3 | N27: 0 | O27: 0 | P27: =(G27+H27+I27) -> 320 | Q27: 0.95225 | R27: 1.025 | S27: 1 | T27: 1 | U27: =(P27*R27*S27*T27) -> 328 | V27: =(U27*Q27) -> 312.338
A28: B | B28: Matt Dahl | C28: 27 | D28: M-O | E28: 177.4 | F28: 80.4 | G28: 215 | H28: 25 | I28: 230 | J28: 0 | K28: 0 | L28: 0 | M28: 3 | N28: 0 | O28: 0 | P28: =(G28+H28+I28) -> 470 | Q28: 0.65505 | R28: 1 | S28: 1 | T28: 1 | U28: =(P28*R28*S28*T28) -> 470 | V28: =(U28*Q28) -> 307.8735 | X28: TESTED
A29: B | B29: Lawrence Par | C29: 23 | D29: M-JR | E29: 193.8 | F29: 88 | G29: 190 | H29: 125 | I29: 215 | J29: 0 | K29: 0 | L29: 0 | M29: 3 | N29: 0 | O29: 0 | P29: =(G29+H29+I29) -> 530 | Q29: 0.62225 | R29: 1 | S29: 0.92 | T29: 1 | U29: =(P29*R29*S29*T29) -> 487.6 | V29: =(U29*Q29) -> 303.4091
A30: B | B30: Khalid Barakzai | C30: 26 | D30: M-O | E30: 234.6 | F30: 106.4 | G30: 227.5 | H30: 125 | I30: 227.5 | J30: 0 | K30: 0 | L30: 0 | M30: 3 | N30: 0 | O30: 0 | P30: =(G30+H30+I30) -> 580 | Q30: 0.5681 | R30: 1 | S30: 0.92 | T30: 1 | U30: =(P30*R30*S30*T30) -> 533.6 | V30: =(U30*Q30) -> 303.13816
A31: A | B31: Karla Jager | C31: 30 | D31: F-O | E31: 181.2 | F31: 82.2 | G31: 142.5 | H31: 85 | I31: 182.5 | J31: 0 | K31: 0 | L31: 0 | M31: 3 | N31: 0 | O31: 0 | P31: =(G31+H31+I31) -> 410 | Q31: 0.7883 | R31: 1 | S31: 0.92 | T31: 1 | U31: =(P31*R31*S31*T31) -> 377.2 | V31: =(U31*Q31) -> 297.34676
A32: B | B32: Christopher Schwindt | C32: 25 | D32: M-O | E32: 271.8 | F32: 123.3 | G32: 187.5 | H32: 127.5 | I32: 260 | J32: 0 | K32: 0 | L32: 0 | M32: 3 | N32: 0 | O32: 0 | P32: =(G32+H32+I32) -> 575 | Q32: 0.54745 | R32: 1 | S32: 0.92 | T32: 1 | U32: =(P32*R32*S32*T32) -> 529 | V32: =(U32*Q32) -> 289.60105
A33: A | B33: Anne-Marie Petty | C33: 26 | D33: F-O | E33: 157.8 | F33: 71.5 | G33: 102.5 | H33: 67.5 | I33: 147.5 | J33: 0 | K33: 0 | L33: 0 | M33: 3 | N33: 0 | O33: 0 | P33: =(G33+H33+I33) -> 317.5 | Q33: 0.86285 | R33: 1.025 | S33: 1 | T33: 1 | U33: =(P33*R33*S33*T33) -> 325.4375 | V33: =(U33*Q33) -> 280.8037469
A34: A | B34: Abby Wohlers | C34: 21 | D34: F-JR | E34: 130 | F34: 59 | G34: 132.5 | H34: 0 | I34: 137.5 | J34: 0 | K34: 0 | L34: 0 | M34: 3 | N34: 0 | O34: 0 | P34: =(G34+H34+I34) -> 270 | Q34: 1.001 | R34: 1 | S34: 1 | T34: 1 | U34: =(P34*R34*S34*T34) -> 270 | V34: =(U34*Q34) -> 270.27
A35: A | B35: Haley Brennan | C35: 23 | D35: F-O | E35: 147.4 | F35: 66.8 | G35: 97.5 | H35: 57.5 | I35: 135 | J35: 0 | K35: 0 | L35: 0 | M35: 3 | N35: 0 | O35: 0 | P35: =(G35+H35+I35) -> 290 | Q35: 0.90595 | R35: 1.025 | S35: 1 | T35: 1 | U35: =(P35*R35*S35*T35) -> 297.25 | V35: =(U35*Q35) -> 269.2936375
A36: A | B36: Dawn Rittenbach | C36: 35 | D36: F-S | E36: 161.8 | F36: 73.4 | G36: 127.5 | H36: 65 | I36: 135 | J36: 0 | K36: 0 | L36: 0 | M36: 3 | N36: 0 | O36: 0 | P36: =(G36+H36+I36) -> 327.5 | Q36: 0.84835 | R36: 1.025 | S36: 0.92 | T36: 1 | U36: =(P36*R36*S36*T36) -> 308.8325 | V36: =(U36*Q36) -> 261.9980514
A37: B | B37: Christopher Senger | C37: 21 | D37: M-JR | E37: 184.2 | F37: 83.6 | G37: 0 | H37: 142.5 | I37: 247.5 | J37: 0 | K37: 0 | L37: 0 | M37: 3 | N37: 0 | O37: 0 | P37: =(G37+H37+I37) -> 390 | Q37: 0.6392 | R37: 1.025 | S37: 1 | T37: 1 | U37: =(P37*R37*S37*T37) -> 399.75 | V37: =(U37*Q37) -> 255.5202
A38: A | B38: Brittany Wells | C38: 33 | D38: F-O | E38: 145.2 | F38: 65.9 | G38: 105 | H38: 42.5 | I38: 140 | J38: 0 | K38: 0 | L38: 0 | M38: 3 | N38: 0 | O38: 0 | P38: =(G38+H38+I38) -> 287.5 | Q38: 0.91665 | R38: 1.025 | S38: 0.92 | T38: 1 | U38: =(P38*R38*S38*T38) -> 271.1125 | V38: =(U38*Q38) -> 248.5152731
A39: A | B39: Anastasia Ivrovski | C39: 23 | D39: F-O | E39: 168 | F39: 76.2 | G39: 107.5 | H39: 60 | I39: 142.5 | J39: 0 | K39: 0 | L39: 0 | M39: 3 | N39: 0 | O39: 0 | P39: =(G39+H39+I39) -> 310 | Q39: 0.8274 | R39: 1.025 | S39: 0.92 | T39: 1 | U39: =(P39*R39*S39*T39) -> 292.33 | V39: =(U39*Q39) -> 241.873842
A40: A | B40: Erica DeLisi | C40: 39 | D40: F-O | E40: 120 | F40: 54.5 | G40: 75 | H40: 57.5 | I40: 92.5 | J40: 0 | K40: 0 | L40: 0 | M40: 3 | N40: 0 | O40: 0 | P40: =(G40+H40+I40) -> 225 | Q40: 1.0684 | R40: 1 | S40: 1 | T40: 1 | U40: =(P40*R40*S40*T40) -> 225 | V40: =(U40*Q40) -> 240.39
A41: A | B41: Yvette McKee | C41: 43 | D41: F-M1 | E41: 192.5 | F41: 87.5 | G41: 110 | H41: 70 | I41: 137.5 | J41: 0 | K41: 0 | L41: 0 | M41: 3 | N41: 0 | O41: 0 | P41: =(G41+H41+I41) -> 317.5 | Q41: 0.7604 | R41: 1 | S41: 0.92 | T41: 1.031 | U41: =(P41*R41*S41*T41) -> 301.1551 | V41: =(U41*Q41) -> 228.998338
A42: A | B42: Jennifer Vickers | C42: 35 | D42: F-S | E42: 194.2 | F42: 88.1 | G42: 125 | H42: 57.5 | I42: 135 | J42: 0 | K42: 0 | L42: 0 | M42: 3 | N42: 0 | O42: 0 | P42: =(G42+H42+I42) -> 317.5 | Q42: 0.75645 | R42: 1 | S42: 0.92 | T42: 1 | U42: =(P42*R42*S42*T42) -> 292.1 | V42: =(U42*Q42) -> 220.959045
A43: A | B43: Julie Barakzai | C43: 28 | D43: F-O | E43: 190.8 | F43: 86.5 | G43: 77.5 | H43: 67.5 | I43: 105 | J43: 0 | K43: 0 | L43: 0 | M43: 3 | N43: 0 | O43: 0 | P43: =(G43+H43+I43) -> 250 | Q43: 0.7645 | R43: 1.025 | S43: 0.92 | T43: 1 | U43: =(P43*R43*S43*T43) -> 235.75 | V43: =(U43*Q43) -> 180.230875
A44: B | B44: John Moravec | C44: 28 | D44: M-O | E44: 180 | F44: 81.7 | G44: 0 | H44: 77.5 | I44: 190 | J44: 0 | K44: 0 | L44: 0 | M44: 3 | N44: 0 | O44: 0 | P44: =(G44+H44+I44) -> 267.5 | Q44: 0.64925 | R44: 1.025 | S44: 1 | T44: 1 | U44: =(P44*R44*S44*T44) -> 274.1875 | V44: =(U44*Q44) -> 178.0162344
A45: B | B45: Carl Lindlauf | C45: 22 | D45: M-JR | E45: 237.6 | F45: 107.8 | G45: 0 | H45: 0 | I45: 247.5 | J45: 0 | K45: 0 | L45: 0 | M45: 3 | N45: 0 | O45: 0 | P45: =(G45+H45+I45) -> 247.5 | Q45: 0.5658 | R45: 1.025 | S45: 1 | T45: 1 | U45: =(P45*R45*S45*T45) -> 253.6875 | V45: =(U45*Q45) -> 143.5363875
A46: A | B46: Kathy Nordness | C46: 51 | D46: F-M3 | E46: 190.4 | F46: 86.4 | G46: 0 | H46: 0 | I46: 112.5 | J46: 0 | K46: 0 | L46: 0 | M46: 3 | N46: 0 | O46: 0 | P46: =(G46+H46+I46) -> 112.5 | Q46: 0.76505 | R46: 1.025 | S46: 1 | T46: 1 | U46: =(P46*R46*S46*T46) -> 115.3125 | V46: =(U46*Q46) -> 88.21982813
A47: A | B47: Lisa Fahey | C47: 51 | D47: F-M3 | E47: 147.8 | F47: 67 | G47: 0 | H47: 92.5 | I47: 0 | J47: 0 | K47: 0 | L47: 0 | M47: 3 | N47: 0 | O47: 0 | P47: =(G47+H47+I47) -> 92.5 | Q47: 0.9049 | R47: 0.92 | S47: 1 | T47: 1 | U47: =(P47*R47*S47*T47) -> 85.1 | V47: =(U47*Q47) -> 77.00699
A48: A | B48: Haley Risovi | C48: 23 | D48: F-JR | E48: 198.2 | F48: 89.9 | G48: 0 | H48: 97.5 | I48: 0 | J48: 0 | K48: 0 | L48: 0 | M48: 3 | N48: 0 | O48: 0 | P48: =(G48+H48+I48) -> 97.5 | Q48: 0.74785 | R48: 1 | S48: 1 | T48: 1 | U48: =(P48*R48*S48*T48) -> 97.5 | V48: =(U48*Q48) -> 72.915375
A49: C | B49: Mike Musselman | C49: 42 | D49: M-M1 | E49: 259.2 | F49: 117.6 | G49: 0 | H49: 0 | I49: 0 | J49: 0 | K49: 0 | L49: 0 | M49: 3 | N49: 0 | O49: 0 | P49: =(G49+H49+I49) -> 0 | Q49: 0.5534 | R49: 0.8 | S49: 0.92 | T49: 1.02 | U49: =(P49*R49*S49*T49) -> 0 | V49: =(U49*Q49) -> 0
A50: C | B50: John Lenz | C50: 45 | D50: M-O | E50: 240.4 | F50: 109.1 | G50: 0 | H50: 0 | I50: 0 | J50: 0 | K50: 0 | L50: 0 | M50: 3 | N50: 0 | O50: 0 | P50: =(G50+H50+I50) -> 0 | Q50: 0.56395 | R50: 0.8 | S50: 0.92 | T50: 1.055 | U50: =(P50*R50*S50*T50) -> 0 | V50: =(U50*Q50) -> 0
A51: C | B51: Eddie LoneEagle | C51: 35 | D51: M-O | E51: 219.4 | F51: 99.5 | G51: 0 | H51: 0 | I51: 0 | J51: 0 | K51: 0 | L51: 0 | M51: 3 | N51: 0 | O51: 0 | P51: =(G51+H51+I51) -> 0 | Q51: 0.58255 | R51: 0.8 | S51: 0.92 | T51: 1 | U51: =(P51*R51*S51*T51) -> 0 | V51: =(U51*Q51) -> 0
